bitfinex-derivatives/quotes_BNBF0:USTF0_20250603
["timestamp","ask_amount","ask_price","bid_price","bid_amount"]
[1748990976550,1.1320807,661.6,661.37,0.47574125]
[1748990976551,1.00400157,661.41,661.37,0.47574125]
[1748990976750,1.1320807,661.6,661.37,0.47574125]
[1748990976943,1.00497425,661.59,661.37,0.47574125]
[1748990977145,1.00486553,661.58,661.37,0.47574125]
[1748990977450,1.00486553,661.57,661.38,0.47574125]
[1748990977749,1.00486553,661.56,661.38,0.47574125]
[1748990977946,1.00486553,661.55,661.38,0.47574125]
[1748990978145,1.00486553,661.54,661.38,0.47574125]
[1748990978348,1.00486553,661.53,661.38,0.47574125]
[1748990978549,1.00486553,661.52,661.38,0.47574125]
[1748990978750,1.00486553,661.51,661.38,0.47574125]
[1748990978953,1.00486553,661.5,661.38,0.47574125]
[1748990979151,1.00486553,661.49,661.38,0.47574125]
[1748990979451,1.00486553,661.48,661.38,0.47574125]
[1748990979651,1.00486553,661.47,661.38,0.47574125]
[1748990979847,1.00486553,661.46,661.38,0.47574125]
[1748990980050,1.00486553,661.45,661.38,0.47574125]
[1748990980250,1.00486553,661.44,661.38,0.47574125]
[1748990980451,1.00486553,661.43,661.38,0.47574125]
[1748990980647,1.00486553,661.42,661.38,0.47574125]
[1748990980849,1.13252374,661.6,661.38,0.47574125]
[1748990980850,1.00486553,661.41,661.38,0.47574125]
[1748990981151,1.13252757,661.6,661.38,0.47574125]
[1748990981351,1.00349182,661.59,661.38,0.47574125]
[1748990981553,1.13252757,661.6,661.38,0.47574125]
[1748990981554,1.00349182,661.58,661.38,0.47574125]
[1748990981754,1.00349182,661.57,661.38,0.47574125]
[1748990981954,1.00349182,661.56,661.38,0.47574125]
[1748990982155,1.00349182,661.55,661.38,0.47574125]
[1748990982350,1.00349182,661.54,661.38,0.47574125]
[1748990982555,1.00349182,661.53,661.38,0.47574125]
[1748990982757,1.00349182,661.52,661.38,0.47574125]
[1748990982950,1.00349182,661.51,661.38,0.47574125]
[1748990983153,1.00349182,661.5,661.38,0.47574125]
[1748990983355,1.00349182,661.49,661.38,0.47574125]
[1748990983555,1.00349182,661.48,661.38,0.47574125]
[1748990983751,1.00349182,661.47,661.38,0.47574125]
[1748990983955,1.00349182,661.46,661.38,0.47574125]
[1748990984155,1.00349182,661.45,661.38,0.47574125]
[1748990984355,1.00349182,661.44,661.38,0.47574125]
[1748990984555,1.00349182,661.43,661.38,0.47574125]
[1748990984753,1.00349182,661.42,661.38,0.47574125]
[1748990984953,1.13252757,661.61,661.38,0.47574125]
[1748990985154,1.50736541,661.71,661.38,0.47574125]
[1748990985357,3.77194127,662.25,661.35,0.30241173]
[1748990985654,0.3017547,662.79,661.35,0.30241173]
[1748990986065,1.13252691,661.61,661.38,0.47733767]
[1748990986357,1.00352769,661.6,661.38,0.47733767]
[1748990986557,1.00352769,661.59,661.38,0.47733767]
[1748990986759,1.00352769,661.58,661.38,0.47733767]
[1748990987058,1.00352769,661.57,661.38,0.47733767]
[1748990987353,1.00352769,661.56,661.38,0.47733767]
[1748990987659,1.00352769,661.55,661.38,0.47733767]
[1748990987858,1.00352769,661.54,661.38,0.47733767]
[1748990988064,1.00352769,661.53,661.38,0.47733767]
[1748990988360,1.00352769,661.52,661.38,0.47733767]
[1748990988560,1.00352769,661.51,661.38,0.47733767]
[1748990988861,1.00352769,661.5,661.38,0.47733767]
[1748990989060,1.00352769,661.49,661.38,0.47733767]
[1748990989361,1.13252926,661.61,661.38,0.47733767]
[1748990989562,2.13595031,661.6,661.38,0.47733767]
[1748990989762,1.00342105,661.59,661.38,0.47733767]
[1748990989960,1.00342105,661.58,661.38,0.47733767]
[1748990990160,1.00342105,661.57,661.38,0.47733767]
[1748990990361,1.00342105,661.56,661.37,0.47733767]
[1748990990561,1.00342105,661.55,661.38,0.47733767]
[1748990990861,1.00342105,661.54,661.38,0.47733767]
[1748990991061,1.00342105,661.53,661.38,0.47733767]
[1748990991257,1.00342105,661.52,661.38,0.47733767]
[1748990991462,1.00342105,661.51,661.38,0.47733767]
[1748990991663,1.00342105,661.5,661.38,0.47733767]
[1748990991964,1.00342105,661.49,661.38,0.47733767]
[1748990992163,1.00342105,661.48,661.38,0.47733767]
[1748990992362,1.00342105,661.47,661.38,0.47733767]
[1748990992563,1.00342105,661.46,661.38,0.47733767]
[1748990992763,1.00342105,661.45,661.38,0.47733767]
[1748990992964,1.00342105,661.44,661.38,0.47733767]
[1748990993161,1.00342105,661.43,661.38,0.47733767]
[1748990993361,1.00351175,661.42,661.38,0.47733767]
[1748990993562,1.13252926,661.61,661.38,0.47733767]
[1748990993765,1.00351137,661.6,661.38,0.47733767]
[1748990993962,1.00351137,661.59,661.38,0.47733767]
[1748990994161,1.13252926,661.61,661.38,0.47733767]
[1748990994162,1.00351137,661.58,661.38,0.47733767]
[1748990994365,1.00351137,661.57,661.35,0.30241173]
[1748990994566,1.00351137,661.56,661.35,0.30241173]
[1748990994765,1.00351137,661.55,661.35,0.30241173]
[1748990994961,1.00351137,661.54,661.35,0.30241173]
[1748990995167,1.00351137,661.53,661.35,0.30241173]
[1748990995362,1.00351137,661.52,661.35,0.30241173]
[1748990995561,1.00351137,661.51,661.35,0.30241173]
[1748990995763,1.00351137,661.5,661.35,0.30241173]
[1748990995962,1.00351137,661.49,661.35,0.30241173]
[1748990996263,1.00351137,661.48,661.35,0.30241173]
[1748990996467,1.00351137,661.47,661.35,0.30241173]
[1748990996664,1.00351137,661.46,661.35,0.30241173]
[1748990996867,1.00351137,661.45,661.35,0.30241173]
[1748990997068,1.00351137,661.44,661.35,0.30241173]
[1748990997265,1.00351137,661.43,661.35,0.30241173]
[1748990997469,1.00390676,661.42,661.35,0.30241173]
[1748990997664,1.00390676,661.41,661.35,0.30241173]
[1748990997968,1.13252608,661.6,661.35,0.30241173]
[1748990998166,1.00390315,661.59,661.35,0.30241173]
[1748990998370,1.00390315,661.58,661.35,0.30241173]
[1748990998670,1.00390315,661.57,661.35,0.30241173]
[1748990998870,1.00390315,661.56,661.35,0.30241173]
[1748990999071,1.00390315,661.55,661.35,0.30241173]
[1748990999265,1.00390315,661.54,661.35,0.30241173]
[1748990999469,1.00390315,661.53,661.35,0.30241173]
[1748990999671,1.00390315,661.52,661.35,0.30241173]
[1748990999972,1.00390315,661.51,661.35,0.30241173]
[1748991000271,1.00390315,661.5,661.35,0.30241173]
[1748991000566,1.00390315,661.49,661.35,0.30241173]
[1748991000867,1.00390315,661.48,661.35,0.30241173]
[1748991001072,1.00390315,661.47,661.35,0.30241173]
[1748991001371,1.00390315,661.46,661.35,0.30241173]
[1748991001566,1.00390315,661.45,661.35,0.30241173]
[1748991001771,1.00390315,661.44,661.35,0.30241173]
[1748991001969,1.00390315,661.43,661.35,0.30241173]
[1748991002169,1.00390315,661.42,661.35,0.30241173]
[1748991002470,1.00390315,661.41,661.35,0.30241173]
[1748991002665,1.00390315,661.4,661.35,0.30241173]
[1748991002967,1.00390315,661.39,661.35,0.30241173]
[1748991003171,1.00390315,661.38,661.35,0.30241173]
[1748991003368,1.00390315,661.37,661.35,0.30241173]
[1748991003571,1.00390315,661.36,661.35,0.30241173]
[1748991003767,1.51003588,661.72,661.35,0.30241173]
[1748991003974,1.13183884,661.59,661.35,0.30241173]
[1748991004176,2.13516283,661.58,661.35,0.30241173]
[1748991004371,1.00332399,661.57,661.35,0.30241173]
[1748991004574,1.00332399,661.56,661.35,0.30241173]
[1748991004772,1.13183884,661.58,661.35,0.30241173]
[1748991004773,1.00332399,661.55,661.35,0.30241173]
[1748991004975,1.00332399,661.54,661.35,0.30241173]
[1748991005169,1.00332399,661.53,661.35,0.30241173]
[1748991005369,1.00332399,661.52,661.35,0.30241173]
[1748991005574,1.00332399,661.51,661.35,0.30241173]
[1748991005771,1.00332399,661.5,661.35,0.30241173]
[1748991005972,1.00332399,661.49,661.35,0.30241173]
[1748991006171,1.00332399,661.48,661.35,0.30241173]
[1748991006374,1.00332399,661.47,661.35,0.30241173]
[1748991006576,1.00332399,661.46,661.35,0.30241173]
[1748991006774,1.00332399,661.45,661.35,0.30241173]
[1748991007075,1.00332399,661.44,661.35,0.30241173]
[1748991007275,1.00332399,661.43,661.35,0.30241173]
[1748991007475,1.00332399,661.42,661.35,0.30241173]
[1748991007777,1.00411951,661.41,661.35,0.30241173]
[1748991007970,1.00411951,661.4,661.35,0.30241173]
[1748991008274,1.00411951,661.39,661.35,0.30241173]
[1748991008575,1.00411951,661.38,661.35,0.30241173]
[1748991008775,1.00411951,661.37,661.35,0.30241173]
[1748991008972,1.13142699,661.59,661.35,0.30241173]
[1748991009176,1.00406291,661.58,661.35,0.30241173]
[1748991009376,1.00406291,661.57,661.35,0.30241173]
[1748991009574,1.00406291,661.56,661.35,0.30241173]
[1748991009769,1.00406291,661.55,661.35,0.30241173]
[1748991009971,1.00406291,661.54,661.35,0.30241173]
[1748991010272,1.00406291,661.53,661.35,0.30241173]
[1748991010471,1.00406291,661.52,661.35,0.30241173]
[1748991010674,1.00406291,661.51,661.35,0.30241173]
[1748991010877,1.00406291,661.5,661.35,0.30241173]
[1748991011177,1.00406291,661.49,661.35,0.30241173]
[1748991011477,1.00406291,661.48,661.35,0.30241173]
[1748991011677,1.00406866,661.47,661.35,0.30241173]
[1748991011875,1.00406866,661.46,661.35,0.30241173]
[1748991012078,1.00406866,661.45,661.35,0.30241173]
[1748991012277,1.00406866,661.44,661.35,0.30241173]
[1748991012475,1.00406866,661.43,661.35,0.30241173]
[1748991012673,1.00406866,661.42,661.35,0.30241173]
[1748991012874,1.00406866,661.41,661.35,0.30241173]
[1748991013075,1.00406866,661.4,661.35,0.30241173]
[1748991013274,1.00406866,661.39,661.35,0.30241173]
[1748991013475,1.00406866,661.38,661.35,0.30241173]
[1748991013675,1.00392373,661.37,661.35,0.30241173]
[1748991013981,1.00392373,661.36,661.35,0.30241173]
[1748991014385,1.13116547,661.72,661.35,0.30241173]
[1748991014586,1.00382552,661.71,661.35,0.30241173]
[1748991014786,1.00382552,661.7,661.35,0.30241173]
[1748991015084,1.00382552,661.69,661.35,0.30241173]
[1748991015282,1.00382552,661.68,661.35,0.30241173]
[1748991015481,1.13116547,661.74,661.35,0.30241173]
[1748991015482,1.00382552,661.67,661.35,0.30241173]
[1748991015686,1.51003588,661.92,661.35,0.30241173]
[1748991015885,1.13104167,661.74,661.35,0.30241173]
[1748991016081,1.00382022,661.73,661.35,0.30241173]
[1748991016283,1.00382022,661.72,661.35,0.30241173]
[1748991016479,1.00382022,661.71,661.35,0.30241173]
[1748991016685,1.00382022,661.7,661.35,0.30241173]
[1748991016881,1.00382022,661.69,661.35,0.30241173]
[1748991017085,1.00382022,661.68,661.35,0.30241173]
[1748991017279,1.00382022,661.67,661.35,0.30241173]
[1748991017587,1.00382022,661.66,661.35,0.30241173]
[1748991017784,1.00382022,661.65,661.35,0.30241173]
[1748991017983,1.00382022,661.64,661.35,0.30241173]
[1748991018185,1.00382022,661.63,661.35,0.30241173]
[1748991018384,1.00382022,661.62,661.35,0.30241173]
[1748991018589,1.00382022,661.61,661.35,0.30241173]
[1748991018788,1.00382022,661.6,661.35,0.30241173]
[1748991018984,1.00382022,661.59,661.35,0.30241173]
[1748991019190,1.00382022,661.58,661.35,0.30241173]
[1748991019487,1.00382022,661.57,661.35,0.30241173]
[1748991019687,1.51003588,661.93,661.35,0.30241173]
[1748991019888,1.13106694,661.74,661.35,0.30241173]
[1748991020083,1.00380601,661.73,661.35,0.30241173]
[1748991020283,1.00380601,661.72,661.35,0.30241173]
[1748991020489,1.00380601,661.71,661.35,0.30241173]
[1748991020689,1.00380601,661.7,661.35,0.30241173]
[1748991020890,1.00380601,661.69,661.35,0.30241173]
[1748991021087,1.00380601,661.68,661.35,0.30241173]
[1748991021291,1.00380601,661.67,661.35,0.30241173]
[1748991021487,1.00380601,661.66,661.35,0.30241173]
[1748991021690,1.00380601,661.65,661.35,0.30241173]
[1748991021892,1.00380601,661.64,661.35,0.30241173]
[1748991022186,1.00380601,661.63,661.35,0.30241173]
[1748991022387,1.00380601,661.62,661.35,0.30241173]
[1748991022585,1.13106694,661.72,661.35,0.30241173]
[1748991022586,1.00380601,661.61,661.35,0.30241173]
[1748991022787,1.13106694,661.72,661.35,0.30241173]
[1748991022788,1.00380601,661.6,661.35,0.30241173]
[1748991023094,1.00380601,661.59,661.35,0.30241173]
[1748991023292,1.00380601,661.58,661.35,0.30241173]
[1748991023587,1.00380601,661.57,661.35,0.30241173]
[1748991023785,1.00383999,661.56,661.35,0.30241173]
[1748991024090,1.00383999,661.55,661.35,0.30241173]
[1748991024286,1.00383999,661.54,661.35,0.30241173]
[1748991024487,1.00383999,661.53,661.35,0.30241173]
[1748991024692,1.00383999,661.52,661.35,0.30241173]
[1748991024887,1.00383999,661.51,661.35,0.30241173]
[1748991025092,1.00383999,661.5,661.35,0.30241173]
[1748991025291,1.00383999,661.49,661.35,0.30241173]
[1748991025492,1.00383999,661.48,661.35,0.30241173]
[1748991025793,1.00383999,661.47,661.35,0.30241173]
[1748991025989,1.00383999,661.46,661.35,0.30241173]
[1748991026188,1.00383999,661.45,661.35,0.30241173]
[1748991026388,1.00383999,661.44,661.35,0.30241173]
[1748991026591,1.00383999,661.43,661.35,0.30241173]
[1748991026792,1.00383999,661.42,661.35,0.30241173]
[1748991027094,1.13108447,661.67,661.35,0.30241173]
[1748991027289,1.00384242,661.66,661.35,0.30241173]
[1748991027495,1.00384242,661.65,661.35,0.30241173]
[1748991027690,1.00384242,661.64,661.35,0.30241173]
[1748991027889,1.003829,661.63,661.35,0.30241173]
[1748991028092,1.003829,661.62,661.35,0.30241173]
[1748991028394,1.003829,661.61,661.35,0.30241173]
[1748991028589,1.003829,661.6,661.35,0.30241173]
[1748991028789,1.003829,661.59,661.35,0.30241173]
[1748991028993,1.003829,661.58,661.35,0.30241173]
[1748991029194,1.003829,661.57,661.35,0.30241173]
[1748991029493,1.003829,661.56,661.35,0.30241173]
[1748991029694,1.003829,661.55,661.35,0.30241173]
[1748991029994,1.003829,661.54,661.35,0.30241173]
[1748991030294,1.003829,661.53,661.35,0.30241173]
[1748991030499,1.003829,661.52,661.35,0.30241173]
[1748991030695,1.003829,661.51,661.35,0.30241173]
[1748991030997,1.003829,661.5,661.35,0.30241173]
[1748991031188,1.003829,661.49,661.35,0.30241173]
[1748991031389,1.003829,661.48,661.35,0.30241173]
[1748991031592,1.51003588,661.76,661.35,0.30241173]
[1748991031793,1.13107961,661.66,661.35,0.30241173]
[1748991031993,1.004027,661.65,661.35,0.30241173]
[1748991032192,1.004027,661.64,661.35,0.30241173]
[1748991032395,1.004027,661.63,661.35,0.30241173]
[1748991032591,1.004027,661.62,661.35,0.30241173]
[1748991032795,1.004027,661.61,661.35,0.30241173]
[1748991033097,1.004027,661.6,661.35,0.30241173]
[1748991033291,1.004027,661.59,661.35,0.30241173]
[1748991033497,1.004027,661.58,661.35,0.30241173]
[1748991033691,1.13107961,661.66,661.35,0.30241173]
[1748991033692,1.004027,661.57,661.35,0.30241173]
[1748991033897,1.004027,661.56,661.35,0.30241173]
[1748991034096,1.004027,661.55,661.35,0.30241173]
[1748991034296,1.004027,661.54,661.35,0.30241173]
[1748991034496,1.004027,661.53,661.35,0.30241173]
[1748991034695,1.004027,661.52,661.35,0.30241173]
[1748991034897,1.004027,661.51,661.35,0.30241173]
[1748991035096,1.004027,661.5,661.35,0.30241173]
[1748991035293,1.004027,661.49,661.35,0.30241173]
[1748991035497,1.00418982,661.48,661.35,0.30241173]
[1748991035698,1.00418982,661.47,661.35,0.30241173]
[1748991035898,1.00418982,661.46,661.35,0.30241173]
[1748991036096,1.00418982,661.45,661.35,0.30241173]
[1748991036301,1.00418982,661.44,661.35,0.30241173]
[1748991036494,1.00418982,661.43,661.35,0.30241173]
[1748991036694,1.1311118,661.62,661.35,0.30241173]
[1748991036898,1.00903679,661.61,661.35,0.30241173]
[1748991037098,1.00903679,661.6,661.35,0.30241173]
[1748991037294,1.00903679,661.59,661.35,0.30241173]
[1748991037494,1.00903679,661.58,661.35,0.30241173]
[1748991037695,1.00903679,661.57,661.35,0.30241173]
[1748991037899,1.00903679,661.56,661.35,0.30241173]
[1748991038098,1.00903679,661.55,661.35,0.30241173]
[1748991038400,1.00903679,661.54,661.35,0.30241173]
[1748991038599,1.00903679,661.53,661.35,0.30241173]
[1748991038793,1.00903679,661.52,661.35,0.30241173]
[1748991038994,1.00903679,661.51,661.35,0.30241173]
[1748991039196,1.00903679,661.5,661.35,0.30241173]
[1748991039394,1.00915673,661.49,661.35,0.30241173]
[1748991039597,1.00915673,661.48,661.35,0.30241173]
[1748991039797,1.00915673,661.47,661.35,0.30241173]
[1748991039994,1.00915673,661.46,661.35,0.30241173]
[1748991040298,1.00915673,661.45,661.35,0.30241173]
[1748991040595,1.00915673,661.44,661.35,0.30241173]
[1748991040898,1.00915673,661.43,661.35,0.30241173]
[1748991041100,1.00915673,661.42,661.35,0.30241173]
[1748991041300,1.00915673,661.41,661.35,0.30241173]
[1748991041495,1.00915673,661.4,661.35,0.30241173]
[1748991041697,1.00915673,661.39,661.35,0.30241173]
[1748991041897,1.13118583,661.64,661.35,0.30241173]
[1748991042096,1.00763171,661.63,661.35,0.30241173]
[1748991042298,1.00763171,661.62,661.35,0.30241173]
[1748991042501,1.00763171,661.61,661.35,0.30241173]
[1748991042700,1.00763171,661.6,661.35,0.30241173]
[1748991042895,1.00763171,661.59,661.35,0.30241173]
[1748991043099,1.00763171,661.58,661.35,0.30241173]
[1748991043300,1.00763171,661.57,661.35,0.30241173]
[1748991043601,1.00763171,661.56,661.35,0.30241173]
[1748991043799,1.00763171,661.55,661.35,0.30241173]
[1748991044100,1.00763171,661.54,661.35,0.30241173]
[1748991044302,1.00763171,661.53,661.35,0.30241173]
[1748991044498,1.00763171,661.52,661.35,0.30241173]
[1748991044700,1.00763171,661.51,661.35,0.30241173]
[1748991044900,1.00763171,661.5,661.35,0.30241173]
[1748991045097,1.00763171,661.49,661.35,0.30241173]
[1748991045301,1.00763171,661.48,661.35,0.30241173]
[1748991045600,1.00763171,661.47,661.35,0.30241173]
[1748991045798,1.00763171,661.46,661.35,0.30241173]
[1748991046000,1.00763171,661.45,661.35,0.30241173]
[1748991046197,1.00763171,661.44,661.35,0.30241173]
[1748991046403,1.00763171,661.43,661.35,0.30241173]
[1748991046701,1.00763171,661.42,661.35,0.30241173]
[1748991046901,1.00763171,661.41,661.35,0.30241173]
[1748991047113,1.00754565,661.4,661.35,0.30241173]
[1748991047304,1.00754565,661.39,661.35,0.30241173]
[1748991047506,1.00754565,661.38,661.35,0.30241173]
[1748991047707,1.00754565,661.37,661.35,0.30241173]
[1748991047906,1.00754565,661.36,661.35,0.30241173]
[1748991050907,1.51003588,661.62,661.35,0.30241173]
[1748991051111,1.13078878,661.5,661.35,0.30241173]
[1748991051305,1.01280133,661.49,661.35,0.30241173]
[1748991051508,1.01280133,661.48,661.35,0.30241173]
[1748991051714,1.01280133,661.47,661.35,0.30241173]
[1748991051914,1.01280133,661.46,661.35,0.30241173]
[1748991052116,1.01280133,661.45,661.35,0.30241173]
[1748991052314,1.01280133,661.44,661.35,0.30241173]
[1748991052610,1.01280133,661.43,661.35,0.30241173]
[1748991052807,1.01280133,661.42,661.35,0.30241173]
[1748991053008,1.01280133,661.41,661.35,0.30241173]
[1748991053209,1.01280133,661.4,661.35,0.30241173]
[1748991053410,1.01280133,661.39,661.35,0.30241173]
[1748991053612,1.01280133,661.38,661.35,0.30241173]
[1748991053815,1.01280133,661.37,661.35,0.30241173]
[1748991054016,1.01280133,661.36,661.35,0.30241173]
[1748991055015,1.01206234,661.36,661.35,0.30241173]
[1748991059117,1.01176909,661.36,661.35,0.30241173]
[1748991061515,1.01173604,661.36,661.35,0.30241173]
[1748991065324,1.01176578,661.36,661.35,0.30241173]
[1748991069232,1.01086998,661.36,661.35,0.30241173]
[1748991073136,1.51003588,661.68,661.35,0.30241173]
[1748991073438,1.12937176,661.56,661.35,0.30241173]
[1748991073638,1.01047035,661.55,661.35,0.30241173]
[1748991074336,2.26505383,661.81,661.35,0.30241173]
[1748991074638,3.77508972,662.32,661.35,0.30241173]
[1748991075238,0.2629978,663.03,661.35,0.30241173]
[1748991081740,2.2586821,661.82,661.35,0.30241173]
[1748991081945,1.12934105,661.56,661.35,0.30241173]
[1748991082141,2.13942167,661.55,661.35,0.30241173]
[1748991082345,1.01008062,661.54,661.35,0.30241173]
[1748991082641,1.01008062,661.53,661.35,0.30241173]
[1748991082944,1.01008062,661.52,661.35,0.30241173]
[1748991083145,1.01008062,661.51,661.35,0.30241173]
[1748991083341,1.01008062,661.5,661.35,0.30241173]
[1748991083546,1.01008062,661.49,661.35,0.30241173]
[1748991083746,1.12934105,661.55,661.35,0.30241173]
[1748991083747,1.01008062,661.48,661.35,0.30241173]
[1748991083943,1.01008062,661.47,661.35,0.30241173]
[1748991084147,1.01008062,661.46,661.35,0.30241173]
[1748991084348,1.01008062,661.45,661.35,0.30241173]
[1748991084548,1.01008062,661.44,661.35,0.30241173]
[1748991084747,1.50578807,661.66,661.35,0.30241173]
[1748991084949,1.12936257,661.54,661.35,0.30241173]
[1748991085247,1.01002819,661.53,661.35,0.30241173]
[1748991085441,1.01002819,661.52,661.35,0.30241173]
[1748991085642,1.01002819,661.51,661.35,0.30241173]
[1748991085846,1.01002819,661.5,661.35,0.30241173]
[1748991086042,1.01002819,661.49,661.35,0.30241173]
[1748991086250,1.01002819,661.48,661.35,0.30241173]
[1748991086449,1.01002819,661.47,661.35,0.30241173]
[1748991086749,1.01002819,661.46,661.35,0.30241173]
[1748991086949,1.01002819,661.45,661.35,0.30241173]
[1748991087249,1.01002819,661.44,661.35,0.30241173]
[1748991087450,1.01002819,661.43,661.35,0.30241173]
[1748991087745,1.01002819,661.42,661.35,0.30241173]
[1748991087945,1.01002819,661.41,661.35,0.30241173]
[1748991088147,1.01002819,661.4,661.35,0.30241173]
[1748991088345,1.01002819,661.39,661.35,0.30241173]
[1748991088550,1.01002819,661.38,661.35,0.30241173]
[1748991088745,1.01002819,661.37,661.35,0.30241173]
[1748991088950,1.01002819,661.36,661.35,0.30241173]
[1748991089150,1.00965512,661.36,661.35,0.30241173]
[1748991093448,1.01007218,661.36,661.35,0.30241173]
[1748991095951,1.12993743,661.64,661.35,0.30241173]
[1748991096150,1.01018386,661.63,661.35,0.30241173]
[1748991096353,1.01018386,661.62,661.35,0.30241173]
[1748991096553,1.01018386,661.61,661.35,0.30241173]
[1748991096754,1.01018386,661.6,661.35,0.30241173]
[1748991096950,1.01018386,661.59,661.35,0.30241173]
[1748991097154,1.01018386,661.58,661.35,0.30241173]
[1748991097352,1.01029662,661.57,661.35,0.30241173]
[1748991097552,1.01029662,661.56,661.35,0.30241173]
[1748991097753,1.01029662,661.55,661.35,0.30241173]
[1748991097959,1.01029662,661.54,661.35,0.30241173]
[1748991098158,1.01029662,661.53,661.35,0.30241173]
[1748991098354,1.01029662,661.52,661.35,0.30241173]
[1748991098554,1.01029662,661.51,661.35,0.30241173]
[1748991098757,1.01029662,661.5,661.35,0.30241173]
[1748991098956,1.01029662,661.49,661.35,0.30241173]
[1748991099157,1.01029662,661.48,661.35,0.30241173]
[1748991099358,1.01029662,661.47,661.35,0.30241173]
[1748991099659,1.01029662,661.46,661.35,0.30241173]
[1748991099959,1.01029662,661.45,661.35,0.30241173]
[1748991100159,1.01029662,661.44,661.35,0.30241173]
[1748991100353,1.01029662,661.43,661.35,0.30241173]
[1748991100554,1.01029662,661.42,661.35,0.30241173]
[1748991100756,1.13033966,661.63,661.35,0.30241173]
[1748991100757,1.01029662,661.41,661.35,0.30241173]
[1748991100957,1.01029662,661.4,661.35,0.30241173]
[1748991101154,1.01029662,661.39,661.35,0.30241173]
[1748991101354,1.01107491,661.38,661.35,0.30241173]
[1748991101554,1.01107491,661.37,661.35,0.30241173]
[1748991101859,1.01107491,661.36,661.35,0.30241173]
[1748991104461,1.13066385,661.59,661.35,0.30241173]
[1748991104655,2.13569465,661.58,661.35,0.30241173]
[1748991104860,1.0050308,661.57,661.35,0.30241173]
[1748991105063,1.50578807,661.69,661.35,0.30241173]
[1748991105357,1.1309578,661.6,661.35,0.30241173]
[1748991105564,1.00511285,661.59,661.35,0.30241173]
[1748991105765,1.00511285,661.58,661.35,0.30241173]
[1748991105963,1.00511285,661.57,661.35,0.30241173]
[1748991106159,1.00511285,661.56,661.35,0.30241173]
[1748991106362,1.00511285,661.55,661.35,0.30241173]
[1748991106559,1.00511285,661.54,661.35,0.30241173]
[1748991106757,1.00511285,661.53,661.35,0.30241173]
[1748991106961,1.00511285,661.52,661.35,0.30241173]
[1748991107159,1.00511285,661.51,661.35,0.30241173]
[1748991107466,1.00511285,661.5,661.35,0.30241173]
[1748991107659,1.00511285,661.49,661.35,0.30241173]
[1748991107863,1.00511285,661.48,661.35,0.30241173]
[1748991108067,1.00511285,661.47,661.35,0.30241173]
[1748991108259,1.00511285,661.46,661.35,0.30241173]
[1748991108459,1.00511285,661.45,661.35,0.30241173]
[1748991108662,1.00511285,661.44,661.35,0.30241173]
[1748991108963,1.00511285,661.43,661.35,0.30241173]
[1748991109164,1.00505308,661.42,661.35,0.30241173]
[1748991109466,1.13062206,661.62,661.35,0.30241173]
[1748991109467,1.00505308,661.41,661.35,0.30241173]
[1748991109666,1.13062206,661.62,661.35,0.30241173]
[1748991109864,1.00497594,661.61,661.35,0.30241173]
[1748991110065,1.00497594,661.6,661.35,0.30241173]
[1748991110366,1.00497594,661.59,661.35,0.30241173]
[1748991110565,1.00497594,661.58,661.35,0.30241173]
[1748991110765,1.00497594,661.57,661.35,0.30241173]
[1748991110966,1.00497594,661.56,661.35,0.30241173]
[1748991111167,1.00497594,661.55,661.35,0.30241173]
[1748991111363,1.13062206,661.75,661.35,0.30241173]
[1748991111364,1.00497594,661.54,661.35,0.30241173]
[1748991111567,1.00497594,661.53,661.35,0.30241173]
[1748991111768,1.00497594,661.52,661.35,0.30241173]
[1748991111968,1.00497594,661.51,661.35,0.30241173]
[1748991112169,1.00497594,661.5,661.35,0.30241173]
[1748991112363,1.00497594,661.49,661.35,0.30241173]
[1748991112565,1.00497594,661.48,661.35,0.30241173]
[1748991112868,1.00497594,661.47,661.35,0.30241173]
[1748991113062,1.00514567,661.46,661.35,0.30241173]
[1748991113363,1.00514567,661.45,661.35,0.30241173]
[1748991113565,1.00514567,661.44,661.35,0.30241173]
[1748991113762,1.00514567,661.43,661.35,0.30241173]
[1748991113963,1.00514567,661.42,661.35,0.30241173]
[1748991114165,1.13019394,661.76,661.35,0.30241173]
[1748991114365,1.00506047,661.75,661.35,0.30241173]
[1748991114563,1.00506047,661.74,661.35,0.30241173]
[1748991114765,1.00506047,661.73,661.35,0.30241173]
[1748991114963,1.00506047,661.72,661.35,0.30241173]
[1748991115162,1.00506047,661.71,661.35,0.30241173]
[1748991115365,1.00506047,661.7,661.35,0.30241173]
[1748991115566,1.00506047,661.69,661.35,0.30241173]
[1748991115766,1.00506047,661.68,661.35,0.30241173]
[1748991115962,1.00506047,661.67,661.35,0.30241173]
[1748991116162,1.00506047,661.66,661.35,0.30241173]
[1748991116368,1.00506047,661.65,661.35,0.30241173]
[1748991116664,1.00506047,661.64,661.35,0.30241173]
[1748991116866,1.00506047,661.63,661.35,0.30241173]
[1748991117070,1.0048836,661.62,661.35,0.30241173]
[1748991117369,1.0048836,661.61,661.35,0.30241173]
[1748991117668,1.0048836,661.6,661.35,0.30241173]
[1748991117866,1.0048836,661.59,661.35,0.30241173]
[1748991118064,1.0048836,661.58,661.35,0.30241173]
[1748991118262,1.0048836,661.57,661.35,0.30241173]
[1748991118461,1.0048836,661.56,661.35,0.30241173]
[1748991118663,1.0048836,661.55,661.35,0.30241173]